[Event "CAT-chT Honor Division 2019"]
[Site "Catalonia"]
[Date "2019.03.30"]
[Round "11.4"]
[White "Feher, Adam"]
[Black "Panelo, Marcelo"]
[Result "1/2-1/2"]
[ECO "B54"]
[WhiteElo "2387"]
[BlackElo "2366"]
[Annotator "NA"]
[PlyCount "61"]
[EventDate "2019.01.16"]
[EventType "team-tourn"]
[EventCountry "ESP"]
[SourceTitle "playchess.com"]
[Source "ChessBase"]
[SourceQuality "1"]
[WhiteTeam "EEB"]
[BlackTeam "SJO"]
[TimeControl "5400+30"]

1. e4 {[%emt 0:00:00]} c5 {[%emt 0:03:15]} 2. Nf3 {[%emt 0:00:00]} d6 {[%emt 0:00:20]} 3. d4 {[%emt 0:00:20]} cxd4 {[%emt 0:00:06]} 4. Nxd4 {[%emt 0:00:07]} Nf6 {[%emt 0:00:04]} 5. Nc3 {[%emt 0:00:09]} a6 {[%emt 0:00:06]} 6. g3 {[%emt 0:00:51]} e5 {[%emt 0:02:18]} 7. Nb3 {[%emt 0:00:19]} Be7 {[%emt 0:00:36]} 8. Bg2 {[%emt 0:06:34]} O-O {[%emt 0:00:15]} 9. a4 {[%emt 0:01:00] B91: Sicilian Najdorf: 6 g3} Bg4 {[%emt 0:07:36]} (9... Nc6 10. O-O Nb4 11. a5 Be6 12. Bg5 h6 13. Bxf6 Bxf6 14. Ra4 Nc6 15. Nd5 Rc8 16. c3 g6 17. Nxf6+ Qxf6 18. Qxd6 {½-½ (68) Duda,J (2737)-Grischuk,A (2766) chess.com INT 2018}) 10. Qd3 {[%emt 0:04:50]} Nc6 {[%emt 0:01:48]} 11. Nd5 {[%emt 0:17:34]} Rc8 {[%emt 0:23:43]} 12. Bd2 {[%emt 0:04:01]} Nxd5 {[%emt 0:02:09]} 13. exd5 {[%emt 0:00:58]} Nd4 $146 {[%emt 0:11:23]} ({Predecessor:} 13... e4 14. Qxe4 Ne5 15. O-O Rc4 16. Qe3 Rxc2 {1-0 (44) Atlas,V (2432)-Forster,R (2458) Switzerland 2017}) 14. Nxd4 {[%emt 0:02:56]} exd4 {[%emt 0:00:07]} 15. O-O {[%emt 0:04:44]} Bf6 {[%emt 0:05:25]} 16. h3 {[%emt 0:03:59]} Bd7 {[%emt 0:04:38]} 17. Rfc1 {[%emt 0:10:39]} Re8 18. Qb3 b5 {[%emt 0:05:40]} 19. axb5 {[%emt 0:23:25]} Bxb5 {[%emt 0:09:51]} 20. c4 {[%emt 0:01:46]} dxc3 {[%emt 0:00:17]} 21. Bxc3 {[%emt 0:00:19]} Bxc3 {[%emt 0:02:59]} 22. Rxc3 Qf6 {[%emt 0:00:06]} 23. Rxc8 {[%emt 0:04:31]} Rxc8 {[%emt 0:05:26]} 24. Bf1 {[%emt 0:01:27]} g6 {[%emt 0:05:56]} 25. Bxb5 {[%emt 0:02:24]} axb5 {[%emt 0:00:36]} 26. Qxb5 {[%emt 0:00:30]} Rc2 {[%emt 0:00:13]} 27. Qe8+ {[%emt 0:00:23]} Kg7 {[%emt 0:00:00]} 28. Qe3 {[%emt 0:00:17]} Rxb2 {[%emt 0:03:12]} 29. Rd1 {[%emt 0:02:39]} Rc2 {[%emt 0:01:56]} 30. Kg2 {[%emt 0:01:25]} Rc3 31. Qe4 $11 1/2-1/2

[Event "CAT-chT Honor Division 2019"]
[Site "Catalonia"]
[Date "2019.03.30"]
[Round "11.5"]
[White "Castrillon Gomez, Melissa"]
[Black "Matnadze, Ana"]
[Result "1/2-1/2"]
[ECO "A05"]
[WhiteElo "2231"]
[BlackElo "2372"]
[Annotator "ChessBase"]
[PlyCount "108"]
[EventDate "2019.01.16"]
[EventType "team-tourn"]
[EventCountry "ESP"]
[SourceTitle "playchess.com"]
[Source "ChessBase"]
[SourceQuality "1"]
[WhiteTeam "SJO"]
[BlackTeam "EEB"]
[TimeControl "5400+30"]

1. Nf3 {[%emt 0:00:00]} Nf6 {[%emt 0:00:00]} 2. c4 {[%emt 0:00:18]} e6 {[%emt 0:00:37]} 3. g3 {[%emt 0:00:14]} b6 {[%emt 0:00:06]} 4. Bg2 {[%emt 0:00:04]} Bb7 {[%emt 0:00:05]} 5. O-O {[%emt 0:00:41]} Be7 {[%emt 0:00:11]} 6. d4 {[%emt 0:00:25]} O-O {[%emt 0:00:09]} 7. Nc3 {[%emt 0:00:30]} Ne4 {[%emt 0:00:20]} 8. Bd2 {[%emt 0:00:32]} f5 {[%emt 0:00:11]} 9. Be1 {[%emt 0:01:33]} Bf6 {[%emt 0:00:48]} 10. Rc1 {[%emt 0:04:09]} d5 {[%emt 0:08:53]} 11. Ne5 {[%emt 0:16:46]} Nd7 {[%emt 0:02:12]} 12. f3 {[%emt 0:05:37]} Nxc3 {[%emt 0:07:11]} 13. Bxc3 {[%emt 0:00:16]} dxc4 {[%emt 0:15:59]} 14. Nxc4 {[%emt 0:09:05]} Qe7 {[%emt 0:02:13]} 15. e4 {[%emt 0:07:21]} Rad8 {[%emt 0:13:10]} 16. f4 {[%emt 0:12:06]} fxe4 {[%emt 0:05:24]} 17. Qe2 {[%emt 0:01:57]} c5 {[%emt 0:02:30]} 18. Bxe4 {[%emt 0:11:03]} cxd4 {[%emt 0:04:35]} 19. Bxb7 {[%emt 0:01:47]} dxc3 {[%emt 0:00:07]} 20. bxc3 {[%emt 0:03:47]} Nc5 {[%emt 0:01:20]} 21. Be4 {[%emt 0:00:31]} Nxe4 {[%emt 0:05:58]} 22. Qxe4 {[%emt 0:00:05]} Qc5+ {[%emt 0:00:19]} 23. Kh1 {[%emt 0:01:46]} Kh8 {[%emt 0:04:47]} 24. Rfe1 {[%emt 0:04:06]} Qd5 {[%emt 0:05:46]} 25. Qxd5 {[%emt 0:01:44]} exd5 {[%emt 0:00:02]} 26. Ne5 {[%emt 0:00:24]} g5 {[%emt 0:00:52]} 27. f5 {[%emt 0:04:04]} Kg7 {[%emt 0:02:32]} 28. g4 {[%emt 0:05:30]} Rfe8 {[%emt 0:01:41]} 29. Nc6 {[%emt 0:00:38]} Rc8 {[%emt 0:07:20]} 30. Rxe8 {[%emt 0:01:48]} Rxe8 {[%emt 0:00:02]} 31. Rd1 {[%emt 0:01:30]} h5 {[%emt 0:03:14]} 32. gxh5 {[%emt 0:02:16]} Kh6 {[%emt 0:00:40]} 33. Rxd5 {[%emt 0:00:32]} Kxh5 {[%emt 0:00:14]} 34. Nd4 {[%emt 0:02:28]} Kg4 {[%emt 0:01:34]} 35. Ne6 {[%emt 0:01:15]} Rc8 {[%emt 0:01:42]} 36. Rd3 {[%emt 0:00:37]} Kxf5 {[%emt 0:02:54]} 37. Nd4+ {[%emt 0:00:01]} Ke4 {[%emt 0:00:43]} 38. Rg3 {[%emt 0:00:05]} a5 {[%emt 0:00:38]} 39. Nb5 {[%emt 0:00:25]} Rc5 {[%emt 0:00:37]} 40. c4 {[%emt 0:00:16]} Kf4 {[%emt 0:00:32]} 41. Na3 {[%emt 0:01:45]} Bb2 {[%emt 0:00:59]} 42. Kg2 {[%emt 0:00:14]} Bxa3 {[%emt 0:00:19]} 43. Rxa3 {[%emt 0:00:01]} Rxc4 {[%emt 0:00:11]} 44. Rf3+ {[%emt 0:00:22]} Ke5 {[%emt 0:00:34]} 45. Rb3 {[%emt 0:01:16]} Rc6 {[%emt 0:01:34]} 46. Rb5+ {[%emt 0:00:07]} Kf4 {[%emt 0:00:09]} 47. Rb2 {[%emt 0:00:10]} g4 {[%emt 0:00:24]} 48. Rf2+ {[%emt 0:01:16]} Ke3 {[%emt 0:00:05]} 49. Kg3 {[%emt 0:00:24]} Rc4 {[%emt 0:01:03]} 50. Rb2 {[%emt 0:00:39]} Kd4 {[%emt 0:00:57]} 51. Rxb6 {[%emt 0:00:14]} Kc5 {[%emt 0:00:21]} 52. Rb8 {[%emt 0:00:45]} Ra4 {[%emt 0:00:12]} 53. Rb2 {[%emt 0:00:07]} Rd4 {[%emt 0:00:31]} 54. Kh4 {[%emt 0:00:55]} Ra4 {[%emt 0:00:36]} 1/2-1/2

[Event "CAT-chT Honor Division 2019"]
[Site "Catalonia"]
[Date "2019.03.30"]
[Round "11.6"]
[White "Grafl, Florian, Dr."]
[Black "Gutierrez Clares, Joaquim"]
[Result "1-0"]
[ECO "A03"]
[WhiteElo "2340"]
[BlackElo "2250"]
[Annotator "NA"]
[PlyCount "51"]
[EventDate "2019.01.16"]
[EventType "team-tourn"]
[EventCountry "ESP"]
[SourceTitle "playchess.com"]
[Source "ChessBase"]
[SourceQuality "1"]
[WhiteTeam "EEB"]
[BlackTeam "SJO"]
[TimeControl "5400+30"]

1. f4 {[%emt 0:00:00]} d5 {[%emt 0:00:00]} 2. Nf3 {[%emt 0:00:00]} Bg4 {[%emt 0:00:15]} 3. e3 {[%emt 0:00:00]} e6 {[%emt 0:01:23]} 4. h3 {[%emt 0:00:51]} (4. g3 c5 5. Bg2 Nc6 6. O-O Nf6 7. d3 Be7 8. b3 O-O 9. Bb2 b5 10. h3 Bh5 11. Nbd2 Qb6 {0-1 (83) Moussard,J (2579)-Zubov,A (2597) Bastia 2018}) 4... Bxf3 {[%emt 0:02:42]} 5. Qxf3 {[%emt 0:00:03]} c6 {[%emt 0:00:13]} 6. d4 {[%emt 0:00:20] A03: Bird's Opening with 1...d5} Nd7 {[%emt 0:00:41]} 7. Bd3 {[%emt 0:00:11]} Bd6 {[%emt 0:02:03]} 8. c4 {[%emt 0:02:07]} Ngf6 {[%emt 0:06:29]} 9. Nc3 {[%emt 0:00:06]} Qc7 $146 {[%emt 0:12:56]} ({Predecessor:} 9... O-O 10. Bd2 Rc8 11. c5 Bc7 12. O-O Ne8 {0-1 (63) Lasek,F (1804)-Thanatipanonda,T (2101) Koh Lanta Island 2012}) 10. Bd2 {[%emt 0:01:40]} a6 {[%emt 0:05:29]} 11. Rc1 {[%emt 0:00:41]} dxc4 {[%emt 0:01:48]} 12. Bxc4 {[%emt 0:00:03]} c5 {[%emt 0:00:08]} 13. dxc5 {[%emt 0:01:29]} Qxc5 {[%emt 0:11:47]} 14. Bxa6 {[%emt 0:13:53]} Rxa6 {[%emt 0:03:06]} 15. Nd1 {[%emt 0:00:06]} Qb5 {[%emt 0:04:07]} 16. Rc8+ {[%emt 0:00:02]} Ke7 {[%emt 0:00:04]} 17. Rxh8 Nc5 18. Qe2 {[%emt 0:11:49]} Nd3+ $1 {[%emt 0:01:46]} 19. Kf1 {[%emt 0:00:02]} Ne4 {[%emt 0:00:13]} 20. Be1 {[%emt 0:00:11]} Rxa2 {[%emt 0:03:22]} 21. Kg1 $1 {[%emt 0:00:33]} ({Don't go for} 21. Rxh7 $2 Ra1 $19) 21... g5 {[%emt 0:11:02]} 22. Rxh7 {[%emt 0:06:31]} (22. Qc2 $1 $14 Ra1 23. Qc8) 22... Qf5 $2 {[%emt 0:03:59]} (22... Ra1 $11 23. Kh2 gxf4 24. Bh4+ Kf8 25. exf4 Qf5 {[%mdl 64] Double Attack} 26. Qxd3 Qxh7) 23. Qxd3 {[%emt 0:00:44]} Qxh7 $18 {[%emt 0:00:07]} (23... Ra1 24. Rh8 Qd5 25. Qxd5 exd5) 24. Nc3 {[%emt 0:00:18]} Ra1 {[%emt 0:00:41]} 25. Nxe4 {[%emt 0:01:48]} Rxe1+ {[%emt 0:00:16]} 26. Kf2 {[%emt 0:00:34]} 1-0

[Event "CAT-chT Honor Division 2019"]
[Site "Catalonia"]
[Date "2019.03.30"]
[Round "11.7"]
[White "Hernandez, Cristian Andres"]
[Black "Lorenzo De La Riva, Lazaro"]
[Result "1/2-1/2"]
[ECO "D87"]
[WhiteElo "2320"]
[BlackElo "2397"]
[Annotator "NA"]
[PlyCount "69"]
[EventDate "2019.01.16"]
[EventType "team-tourn"]
[EventCountry "ESP"]
[SourceTitle "playchess.com"]
[Source "ChessBase"]
[SourceQuality "1"]
[WhiteTeam "CE Barbera"]
[BlackTeam "Colon Sabadell Chessy"]
[TimeControl "5400+30"]

1. d4 Nf6 2. c4 g6 3. Nc3 d5 4. cxd5 Nxd5 5. e4 Nxc3 6. bxc3 Bg7 7. Bc4 c5 8. Ne2 O-O 9. O-O Nc6 10. Be3 b6 11. dxc5 {D87: Exchange Grünfeld: Classical Line: Variations without ...cxd4} (11. Rc1 Bb7 12. Qd2 e6 13. Rfd1 Rc8 14. f3 cxd4 15. cxd4 Qd6 16. Bh6 Bxh6 17. Qxh6 Na5 18. Bd3 Rxc1 19. Qxc1 {½-½ (50) Nakamura,H (2746)-Vachier Lagrave,M (2781) London 2018}) 11... Qc7 12. cxb6 axb6 13. Bf4 Ne5 14. Bd5 Ra5 15. Qc2 $146 ({Predecessor:} 15. Qc1 Ba6 16. Re1 Rc8 17. Qe3 Rc5 18. Rac1 e6 19. Bb3 Qa7 20. Bxe5 Bxe5 21. c4 Bf6 22. h3 Qc7 {0-1 (22) Hilgert,V (1695)-Ziegler,M (2167) Eschborn 2013}) 15... Ba6 16. Rfd1 e6 17. Bb3 g5 18. Bg3 Rc5 19. f3 Bxe2 20. Qxe2 Rxc3 21. Qd2 h6 22. Rac1 Rc8 23. Rxc3 Qxc3 24. Qxc3 Rxc3 25. Bf2 b5 26. Bd4 Rc8 27. Kf2 Ra8 28. Ke2 h5 29. g3 Nc6 30. Be3 g4 31. f4 Na5 32. Bc2 Nc4 33. Bb3 Na5 $11 34. Bc2 Nc4 35. Bb3 1/2-1/2

[Event "CAT-chT Honor Division 2019"]
[Site "Catalonia"]
[Date "2019.03.30"]
[Round "11.7"]
[White "Fernandez Madrid, Carlos"]
[Black "Hernando Rodrigo, Julio Antonio"]
[Result "1-0"]
[ECO "E90"]
[WhiteElo "2042"]
[BlackElo "2308"]
[Annotator "ChessBase"]
[PlyCount "127"]
[EventDate "2019.01.16"]
[EventType "team-tourn"]
[EventCountry "ESP"]
[SourceTitle "playchess.com"]
[Source "ChessBase"]
[SourceQuality "1"]
[WhiteTeam "SJO"]
[BlackTeam "EEB"]
[TimeControl "5400+30"]

1. d4 {[%emt 0:00:00]} Nf6 {[%emt 0:00:00]} 2. c4 {[%emt 0:00:01]} g6 {[%emt 0:00:00]} 3. Nc3 {[%emt 0:00:04]} Bg7 {[%emt 0:00:00]} 4. e4 {[%emt 0:00:06]} d6 {[%emt 0:00:00]} 5. Nf3 {[%emt 0:00:06]} O-O {[%emt 0:00:07]} 6. h3 {[%emt 0:00:08]} e5 {[%emt 0:00:25]} 7. d5 {[%emt 0:00:05]} a5 {[%emt 0:00:35]} 8. Be3 {[%emt 0:00:26]} Na6 {[%emt 0:00:18]} 9. g4 {[%emt 0:00:05]} Nc5 {[%emt 0:00:29]} 10. Nd2 {[%emt 0:00:06]} Nfd7 {[%emt 0:01:02]} 11. Rg1 {[%emt 0:01:52]} c6 {[%emt 0:00:49]} 12. g5 {[%emt 0:02:16]} f5 {[%emt 0:03:05]} 13. h4 {[%emt 0:01:36]} cxd5 {[%emt 0:02:40]} 14. cxd5 {[%emt 0:03:41]} f4 {[%emt 0:00:37]} 15. Bxc5 {[%emt 0:00:16]} Nxc5 {[%emt 0:00:10]} 16. h5 {[%emt 0:00:13]} Rf7 {[%emt 0:00:32]} 17. Qf3 {[%emt 0:00:58]} a4 {[%emt 0:02:21]} 18. hxg6 {[%emt 0:03:27]} hxg6 {[%emt 0:00:10]} 19. Bh3 {[%emt 0:00:42]} b5 {[%emt 0:09:10]} 20. Bxc8 {[%emt 0:00:57]} Qxc8 {[%emt 0:03:51]} 21. a3 {[%emt 0:04:41]} Bf8 {[%emt 0:15:51]} 22. Na2 {[%emt 0:07:24]} b4 {[%emt 0:03:47]} 23. Nxb4 {[%emt 0:00:54]} Rb8 {[%emt 0:00:16]} 24. Rh1 {[%emt 0:05:06]} Rfb7 {[%emt 0:12:04]} 25. Qh3 {[%emt 0:03:59]} Qxh3 {[%emt 0:00:31]} 26. Rxh3 {[%emt 0:00:02]} Rxb4 {[%emt 0:00:13]} 27. axb4 {[%emt 0:00:03]} Rxb4 {[%emt 0:00:07]} 28. O-O-O {[%emt 0:03:17]} Rd4 {[%emt 0:03:39]} 29. Kc2 {[%emt 0:10:51]} Be7 {[%emt 0:01:06]} 30. Rdh1 {[%emt 0:01:07]} Rxd2+ {[%emt 0:01:04]} 31. Kxd2 {[%emt 0:00:12]} Nxe4+ {[%emt 0:00:06]} 32. Ke2 {[%emt 0:01:11]} Nxg5 {[%emt 0:00:19]} 33. Ra3 {[%emt 0:00:12]} e4 {[%emt 0:01:39]} 34. Rxa4 {[%emt 0:01:38]} Bf6 {[%emt 0:01:03]} 35. Rg1 {[%emt 0:00:55]} f3+ {[%emt 0:03:39]} 36. Ke3 {[%emt 0:05:08]} Bxb2 {[%emt 0:00:57]} 37. Rxg5 {[%emt 0:00:23]} Bc1+ {[%emt 0:00:06]} 38. Kxe4 {[%emt 0:00:02]} Bxg5 {[%emt 0:00:07]} 39. Ra7 {[%emt 0:00:21]} Kf8 {[%emt 0:01:08]} 40. Kxf3 {[%emt 0:00:19]} Be7 {[%emt 0:00:26]} 41. Kg4 {[%emt 0:00:15]} Kf7 {[%emt 0:00:19]} 42. f4 {[%emt 0:00:54]} Kf6 {[%emt 0:00:13]} 43. Rd7 {[%emt 0:00:22]} Bf8 {[%emt 0:00:44]} 44. Rh7 {[%emt 0:02:04]} Be7 {[%emt 0:02:14]} 45. Rh1 {[%emt 0:00:31]} Bd8 {[%emt 0:01:21]} 46. Re1 {[%emt 0:00:23]} Kf7 {[%emt 0:01:39]} 47. Re6 {[%emt 0:00:18]} Be7 {[%emt 0:00:26]} 48. Kf3 {[%emt 0:00:31]} Bf8 {[%emt 0:00:40]} 49. Ke4 {[%emt 0:00:12]} Be7 {[%emt 0:00:27]} 50. Kd4 {[%emt 0:00:26]} Bf8 {[%emt 0:00:05]} 51. Kc4 {[%emt 0:00:06]} Be7 {[%emt 0:02:44]} 52. Kb5 {[%emt 0:00:06]} Bh4 {[%emt 0:00:19]} 53. Kc6 {[%emt 0:00:29]} Bg3 {[%emt 0:01:49]} 54. Re4 {[%emt 0:06:12]} Kf6 55. Kxd6 {[%emt 0:00:58]} g5 {[%emt 0:07:54]} 56. Kc6 g4 {[%emt 0:15:49]} 57. d6 {[%emt 0:01:19]} Kf5 {[%emt 0:03:17]} 58. d7 {[%emt 0:01:21]} Bh4 {[%emt 0:00:49]} 59. Kd5 {[%emt 0:00:41]} g3 {[%emt 0:00:31]} 60. Re5+ {[%emt 0:00:10]} Kg4 {[%emt 0:01:26]} 61. Re8 {[%emt 0:02:32]} Kf3 {[%emt 0:02:11]} 62. f5 {[%emt 0:00:56]} g2 {[%emt 0:01:02]} 63. Rg8 {[%emt 0:00:06]} Bd8 {[%emt 0:00:29]} 64. Ke6 {[%emt 0:00:08]} 1-0

[Event "CAT-chT Honor Division 2019"]
[Site "Catalonia"]
[Date "2019.03.30"]
[Round "11.8"]
[White "Bofill Mas, Alejandro"]
[Black "Perez Manas, Benjamin"]
[Result "1-0"]
[ECO "A26"]
[WhiteElo "2324"]
[BlackElo "2303"]
[Annotator "ChessBase"]
[PlyCount "99"]
[EventDate "2019.01.16"]
[EventType "team-tourn"]
[EventCountry "ESP"]
[SourceTitle "playchess.com"]
[Source "ChessBase"]
[SourceQuality "1"]
[WhiteTeam "Colon Sabadell Chessy"]
[BlackTeam "CE Barbera"]
[TimeControl "5400+30"]

1. c4 f5 2. g3 Nf6 3. Bg2 g6 4. Nc3 d6 5. d3 Bg7 6. e4 O-O 7. Nge2 Nc6 8. O-O e5 9. Nd5 Be6 10. Bg5 Qd7 11. Qd2 Nh5 12. exf5 Bxf5 13. Rad1 Rf7 14. b4 Bh3 15. b5 Nd8 16. d4 Bxg2 17. Kxg2 c6 18. Ndc3 exd4 19. Nxd4 Ne6 20. Be3 Bxd4 21. Bxd4 Nxd4 22. Qxd4 Rf4 23. bxc6 Qxc6+ 24. Qd5+ Qxd5+ 25. Nxd5 Rxc4 26. Rd2 Re8 27. Rfd1 Kf7 28. Rd3 Rc6 29. Rf3+ Kg7 30. g4 Re5 31. gxh5 Rxh5 32. Rb3 Rg5+ 33. Kf1 b6 34. Ra3 a5 35. Ne3 Rh5 36. Kg2 Rg5+ 37. Kf3 Rh5 38. Kg3 Rg5+ 39. Kf4 Rh5 40. h3 Rb5 41. Rad3 Rb2 42. R1d2 Rxd2 43. Rxd2 Kf6 44. a4 Ke6 45. Ke4 Rc3 46. Nd5 Ra3 47. Rd4 Rb3 48. h4 Kd7 49. Rc4 Ke6 50. Rc7 1-0

[Event "CAT-chT Honor Division 2019"]
[Site "Catalonia"]
[Date "2019.03.30"]
[Round "11.8"]
[White "Vehi Bach, Victor Manuel"]
[Black "Campins Machado, Francesc"]
[Result "1-0"]
[ECO "B40"]
[WhiteElo "2306"]
[BlackElo "2109"]
[Annotator "ChessBase"]
[PlyCount "63"]
[EventDate "2019.01.16"]
[EventType "team-tourn"]
[EventCountry "ESP"]
[SourceTitle "playchess.com"]
[Source "ChessBase"]
[SourceQuality "1"]
[WhiteTeam "EEB"]
[BlackTeam "SJO"]
[TimeControl "5400+30"]

1. e4 c5 2. Nf3 e6 3. d4 cxd4 4. Nxd4 Nf6 5. Nc3 d6 6. Be3 Be7 7. g4 h6 8. Qe2 Nc6 9. O-O-O Bd7 10. h3 g5 11. Ndb5 Qb8 12. Qd2 O-O 13. Be2 Ne8 14. h4 a6 15. Nd4 Qd8 16. hxg5 hxg5 17. Rh3 Ng7 18. f4 gxf4 19. Bxf4 Nxd4 20. Qxd4 e5 21. Bxe5 Bg5+ 22. Kb1 Bxg4 23. Rh8+ Kxh8 24. Bxg7+ Kg8 25. Bxg4 Re8 26. Nd5 Re6 27. Rh1 Bh4 28. Bxe6 fxe6 29. Bf6 Bxf6 30. Nxf6+ Kf7 31. Rh7+ Kg6 32. Qg1+ 1-0

[Event "CAT-chT Honor Division 2019"]
[Site "Catalonia"]
[Date "2019.03.30"]
[Round "11.9"]
[White "Obon Temprano, Sergi"]
[Black "Perpinya Rofes, Lluis Maria"]
[Result "0-1"]
[ECO "D00"]
[WhiteElo "2273"]
[BlackElo "2317"]
[Annotator "ChessBase"]
[PlyCount "104"]
[EventDate "2019.01.16"]
[EventType "team-tourn"]
[EventCountry "ESP"]
[SourceTitle "playchess.com"]
[Source "ChessBase"]
[SourceQuality "1"]
[WhiteTeam "CE Barbera"]
[BlackTeam "Colon Sabadell Chessy"]
[TimeControl "5400+30"]

1. d4 Nf6 2. Nc3 d5 3. Bf4 c5 4. e3 e6 5. Nf3 Be7 6. h3 O-O 7. g4 Qb6 8. Rb1 Nc6 9. Bg2 Qa6 10. Qe2 b6 11. Bf1 Qa5 12. Qb5 Bb7 13. Bd3 Qxb5 14. Bxb5 Rac8 15. O-O cxd4 16. exd4 Nb4 17. Ne1 a6 18. Be2 b5 19. Rd1 Rxc3 20. bxc3 Nxa2 21. Ra1 Nxc3 22. Bd3 Bb4 23. Nf3 a5 24. Nd2 a4 25. Nb1 Rc8 26. f3 Ne8 27. Bd2 Nd6 28. Kf2 f6 29. Nxc3 Bxc3 30. Bxc3 Rxc3 31. Rfb1 Bc6 32. Ke2 e5 33. dxe5 fxe5 34. Kd2 d4 35. Re1 Rc5 36. Ke2 Kf7 37. Kf2 Kf6 38. h4 h6 39. g5+ hxg5 40. hxg5+ Ke6 41. Re2 Nf7 42. f4 Kd6 43. g6 Nh6 44. fxe5+ Rxe5 45. Rxe5 Ng4+ 46. Ke2 Nxe5 47. Rb1 Kc5 48. Rf1 a3 49. Kd2 b4 50. Rf5 Kd6 51. Rf1 Nxd3 52. cxd3 b3 0-1

[Event "CAT-chT Honor Division 2019"]
[Site "Catalonia"]
[Date "2019.03.30"]
[Round "11.9"]
[White "Hapala, Elisabeth"]
[Black "Chueca Forcen, Alberto"]
[Result "0-1"]
[ECO "B03"]
[WhiteElo "2136"]
[BlackElo "2270"]
[Annotator "ChessBase"]
[PlyCount "82"]
[EventDate "2019.01.16"]
[EventType "team-tourn"]
[EventCountry "ESP"]
[SourceTitle "playchess.com"]
[Source "ChessBase"]
[SourceQuality "1"]
[WhiteTeam "SJO"]
[BlackTeam "EEB"]
[TimeControl "5400+30"]

1. e4 {[%emt 0:00:00]} Nf6 {[%emt 0:07:23]} 2. e5 {[%emt 0:01:37]} Nd5 {[%emt 0:00:14]} 3. d4 {[%emt 0:00:05]} d6 {[%emt 0:00:12]} 4. c4 {[%emt 0:00:08]} Nb6 {[%emt 0:00:02]} 5. exd6 {[%emt 0:00:16]} exd6 {[%emt 0:00:02]} 6. h3 {[%emt 0:04:00]} Be7 {[%emt 0:00:12]} 7. Nf3 {[%emt 0:00:05]} O-O {[%emt 0:00:45]} 8. Be2 {[%emt 0:12:36]} Be6 {[%emt 0:01:57]} 9. d5 {[%emt 0:07:06]} Bf5 {[%emt 0:00:29]} 10. Nc3 {[%emt 0:00:38]} N8d7 {[%emt 0:07:19]} 11. Be3 {[%emt 0:02:32]} h6 {[%emt 0:04:38]} 12. O-O {[%emt 0:01:09]} Bf6 {[%emt 0:01:20]} 13. Rc1 {[%emt 0:02:46]} Re8 {[%emt 0:01:27]} 14. b4 {[%emt 0:13:31]} a5 {[%emt 0:03:07]} 15. a3 {[%emt 0:00:05]} axb4 {[%emt 0:00:21]} 16. axb4 {[%emt 0:00:02]} Nc8 {[%emt 0:06:30]} 17. Qb3 {[%emt 0:05:15]} Ne5 {[%emt 0:04:08]} 18. Nd4 {[%emt 0:04:30]} Bd3 {[%emt 0:06:32]} 19. Bxd3 {[%emt 0:04:16]} Nxd3 {[%emt 0:01:26]} 20. Rcd1 {[%emt 0:00:06]} Ne5 {[%emt 0:01:29]} 21. c5 {[%emt 0:12:58]} b6 {[%emt 0:05:40]} 22. c6 {[%emt 0:04:35]} Ne7 {[%emt 0:02:41]} 23. Ne4 {[%emt 0:06:44]} N7g6 {[%emt 0:06:12]} 24. Nxf6+ {[%emt 0:04:50]} Qxf6 {[%emt 0:01:34]} 25. f4 {[%emt 0:02:25]} Nc4 {[%emt 0:09:49]} 26. Bc1 {[%emt 0:00:21]} b5 {[%emt 0:01:11]} 27. Nxb5 {[%emt 0:00:17]} Re2 {[%emt 0:00:23]} 28. Nd4 {[%emt 0:06:35]} Nd2 {[%emt 0:09:24]} 29. Qd3 {[%emt 0:00:24]} Rxg2+ {[%emt 0:02:00]} 30. Kxg2 {[%emt 0:00:04]} Nxf1 {[%emt 0:00:06]} 31. Rxf1 {[%emt 0:00:57]} Ra2+ {[%emt 0:00:02]} 32. Rf2 {[%emt 0:02:16]} Nh4+ {[%emt 0:00:01]} 33. Kg1 {[%emt 0:02:12]} Ra1 {[%emt 0:00:03]} 34. Ne2 {[%emt 0:00:35]} Qb2 {[%emt 0:00:46]} 35. Rf1 {[%emt 0:00:40]} Qxb4 {[%emt 0:00:22]} 36. Bd2 {[%emt 0:00:47]} Qc5+ {[%emt 0:04:19]} 37. Be3 {[%emt 0:00:09]} Qa5 {[%emt 0:00:44]} 38. Rxa1 {[%emt 0:00:23]} Qxa1+ {[%emt 0:00:02]} 39. Bc1 {[%emt 0:00:24]} Qa7+ {[%emt 0:00:56]} 40. Qe3 {[%emt 0:00:36]} Qa5 {[%emt 0:00:03]} 41. Qd2 {[%emt 0:01:00]} Nf3+ {[%emt 0:00:06]} 0-1

[Event "CAT-chT Honor Division 2019"]
[Site "Catalonia"]
[Date "2019.03.30"]
[Round "11.10"]
[White "Avila Jimenez, Xavier"]
[Black "Barcelo Sola, David"]
[Result "1-0"]
[ECO "D32"]
[WhiteElo "2159"]
[BlackElo "1991"]
[Annotator "NA"]
[PlyCount "60"]
[EventDate "2019.01.16"]
[EventType "team-tourn"]
[EventCountry "ESP"]
[SourceTitle "playchess.com"]
[Source "ChessBase"]
[SourceQuality "1"]
[WhiteTeam "EEB"]
[BlackTeam "SJO"]
[TimeControl "5400+30"]

1. d4 {[%emt 0:00:00]} d5 {[%emt 0:00:00]} 2. c4 {[%emt 0:00:00]} e6 {[%emt 0:00:00]} 3. Nc3 {[%emt 0:00:25]} c5 {[%emt 0:00:11]} 4. cxd5 {[%emt 0:01:54]} cxd4 {[%emt 0:00:14]} 5. Qa4+ {[%emt 0:01:58]} Bd7 {[%emt 0:06:27]} 6. Qxd4 {[%emt 0:00:35]} exd5 {[%emt 0:00:52]} 7. Qxd5 {[%emt 0:03:56]} Nf6 {[%emt 0:02:42] D32: Tarrasch Defence: Sidelines and lines without g3} (7... Nc6 8. Nf3 Nf6 9. Qd1 Bc5 10. Bg5 Qb6 11. e3 Qxb2 12. Bxf6 gxf6 13. Ne4 Bb4+ 14. Ned2 Bg4 15. Qc1 Qxc1+ 16. Rxc1 Bxf3 17. gxf3 O-O-O {0-1 (17) Baron,T (2532)-Gareyev,T (2569) St Petersburg 2018}) 8. Qb3 {[%emt 0:07:34]} Nc6 {[%emt 0:03:44]} 9. e3 {[%emt 0:04:14]} Qc7 {[%emt 0:09:12]} 10. Nf3 {[%emt 0:06:38]} O-O-O {[%emt 0:19:44]} 11. Bd2 {[%emt 0:09:26]} Kb8 {[%emt 0:02:09]} 12. Rc1 $146 {[%emt 0:10:37]} ({Predecessor:} 12. Nb5 Qb6 13. Nbd4 Ne4 14. Nxc6+ Bxc6 15. Bc3 Nxc3 16. bxc3 {1-0 (55) Overbeck,T (2097)-Klink,R (2239) Kassel 2000}) 12... Be6 {[%emt 0:01:18]} 13. Qa4 {[%emt 0:00:24]} a6 {[%emt 0:10:58]} 14. Be2 {[%emt 0:08:12]} Bd6 {[%emt 0:10:53]} 15. a3 {[%emt 0:04:24]} g5 {[%emt 0:07:18]} (15... Bd7 $16) 16. Nxg5 {[%emt 0:09:38]} Bxh2 {[%emt 0:06:27]} 17. Nxe6 {[%emt 0:04:21]} fxe6 {[%emt 0:00:10]} 18. Qh4 {[%emt 0:02:21]} Be5 {[%emt 0:01:17]} 19. f4 {[%emt 0:01:15]} Bxc3 $2 {[%emt 0:06:39]} (19... Rxd2 {was worth a try.} 20. fxe5 (20. Kxd2 Bxc3+ 21. Rxc3 Ne4+ 22. Ke1 Qb6 $14) 20... Rxe2+ 21. Nxe2 Qa5+ 22. b4 Qxe5) 20. Bxc3 {[%emt 0:00:21]} Ne4 {[%emt 0:01:15] [#]} 21. Be5 $1 {[%emt 0:00:23]} Nxe5 {[%emt 0:02:06]} 22. Rxc7 {[%emt 0:00:09]} Ng6 {[%emt 0:01:48]} 23. Qxd8+ {[%emt 0:02:48]} Rxd8 {[%emt 0:00:17]} 24. Rhxh7 {[%emt 0:00:01]} Nd6 {[%emt 0:00:55]} 25. Rcd7 {[%emt 0:00:22]} Rxd7 {[%emt 0:00:21]} 26. Rxd7 {[%emt 0:00:01]} Ne4 {[%emt 0:01:00]} 27. Bd3 {[%emt 0:01:28]} Nc5 {[%emt 0:00:17]} 28. Rxb7+ {[%emt 0:00:19]} Kxb7 $18 {[%emt 0:00:49]} 29. Bxg6 {[%emt 0:00:01]} Kc6 {[%emt 0:00:24]} 30. b4 {[%emt 0:00:47]} Nb3 {[%emt 0:00:49]} 1-0